Cogmind - Beta 13 @@@ ROGUE MODE // 2024.04.08 @ 18:12:38 Player: zoefiri Result: Destroyed by G-47 Trooper with Particle Gun Performance ------------- Evolutions (0) 0 Regions Visited (1) 200 Robots Destroyed (15) 75 Value Destroyed (169) 169 Prototype IDs (0) 0 Alien Tech Used (0) 0 Bonus (0) 0 TOTAL SCORE: 444 Bonus ------- None Cogmind --------- Core Integrity 0/250 Matter 230/300 Energy 99/100 System Corruption 0% Temperature Cool (9) Movement Core (100) Ox1 Location -10/Materials Parts ------- > --- POWER (1) -------- (None) > --- PROPULSION (2) --- (None) > --- UTILITY (2) ------ Small Storage Unit > --- WEAPON (2) ------- Light Assault Rifle > --- INVENTORY (8) ---- Hover Unit Hover Unit Hover Unit Hover Unit Weapon Shielding Peak State ------------ > --- POWER ------------ Light Ion Engine > --- PROPULSION ------- Aluminum Leg Aluminum Leg > --- UTILITY ---------- Small Storage Unit > --- WEAPON ----------- EM Pulse Gun Light Assault Rifle > --- INVENTORY -------- (None) [Rating: 6] Favorites ----------- Power Light Ion Engine Engine Light Ion Engine Propulsion Aluminum Leg Treads Light Treads Leg Aluminum Leg Utility Small Storage Unit Storage Small Storage Unit Weapon Light Assault Rifle Energy Gun Medium Laser Ballistic Gun Light Assault Rifle Build | -11 -10 ------- Run | Yrd Mat Slots Evolved . | . . Power . | . . Propulsion . | . . Utility . | . . Weapon . | . . Parts Attached 14 | 8 6 Power 4 | 1 3 Engine 4 | 1 3 Core . | . . Reactor . | . . Propulsion 3 | 3 . Treads 1 | 1 . Leg 2 | 2 . Wheel . | . . Hover . | . . Flight . | . . Utility 1 | 1 . Device . | . . Storage 1 | 1 . Processor . | . . Hackware . | . . Protection . | . . Artifact . | . . Weapon 6 | 3 3 Energy Gun 2 | 1 1 Energy Cannon . | . . Ballistic Gun 4 | 2 2 Ballistic Cannon . | . . Launcher . | . . Special Weapon . | . . Impact Weapon . | . . Slashing Weapon . | . . Piercing Weapon . | . . Special Melee Weapon . | . . Unidentified Prototypes . | . . Parts Lost 8 | . 8 Power 3 | . 3 Propulsion 2 | . 2 Utility . | . . Weapon 3 | . 3 Highest Loss Streak 4 | . 4 To Critical Strikes . | . . Average Slot Usage (%) 71 | . 71 Engine 11 | . 11 Leg 20 | . 20 Storage 14 | . 14 Energy Gun 7 | . 7 Ballistic Gun 17 | . 17 Naked Turns . | . . Heaviest Build 13 | 10 13 Greatest Support 20 | 10 20 Greatest Overweight (x) 3 | . 3 Average Overweight (x) . | . . Largest Inventory Capacity 8 | 8 8 Average Capacity 7 | 6 8 Most Carried 5 | . 5 Average Carried 3 | . 3 Final Capacity 8 | 8 8 Final Carried 5 | . 5 Class Distribution -------------------- 100% | Mutant Dominant Class ---------------- Mutant | -10/Materials Resources | -11 -10 ----------- Run | Yrd Mat Matter Collected 335 | 181 154 Remotely . | . . Salvage Created 526 | . 526 Parts 28 | . 28 Haulers Intercepted 1 | . 1 Recyclers Shooed 4 | 1 3 Parts Field Recycled . | . . Retrieved Matter . | . . Parts Self-Destructed . | . . Prevented . | . . Kills | -11 -10 ------- Run | Yrd Mat Combat Hostiles Destroyed 7 | . 7 Guns 7 | . 7 Classes Destroyed 6 | . 6 Tunneler 1 | . 1 Hauler 1 | . 1 Recycler 3 | . 3 Watcher 3 | . 3 Swarmer 6 | . 6 Grunt 1 | . 1 Best Kill Streak 3 | . 3 Combat Bots Only 3 | . 3 Max Kills in Single Turn 2 | . 2 Gunslinging 1 | . 1 Exploded . | . . Melee . | . . Uniques/NPCs Destroyed . | . . Combat | -11 -10 -------- Run | Yrd Mat Hostile Shots Fired 128 | . 128 Missed 41 | . 41 Damage Taken 883 | . 883 Core 261 | . 261 Absorbed by Shields . | . . Core Remaining (%) 100 | 100 . Volleys Fired 87 | . 87 Largest 2 | . 2 Hottest 70 | . 70 Shots Fired 155 | . 155 Gun 155 | . 155 Cannon . | . . Launcher . | . . Special . | . . Kinetic 107 | . 107 Thermal 48 | . 48 Explosive . | . . Electromagnetic . | . . Robot Hit Streak 9 | . 9 Robot Miss Streak 6 | . 6 Penetration Max . | . . Secondary Targets 2 | . 2 Max Gunslinging Chain 1 | . 1 Shots Hit Robots 84 | . 84 Core Hits 29 | . 29 Critical Kills . | . . Critical Parts Destroyed 2 | . 2 Critical Strikes 3 | . 3 Burn 1 | . 1 Destroy 2 | . 2 Melee Attacks . | . . Impact . | . . Slashing . | . . Piercing . | . . Sneak Attacks . | . . Combat Hostiles . | . . Follow-up Attacks . | . . Damage Inflicted 927 | . 927 Guns 927 | . 927 Cannons . | . . Explosions . | . . Melee . | . . Ramming . | . . Kinetic 566 | . 566 Thermal 361 | . 361 Explosive . | . . Electromagnetic . | . . Impact . | . . Slashing . | . . Piercing . | . . Highest Corruption . | . . Average Corruption . | . . Corruption Purged . | . . Corruption Blocked . | . . Overload Shots . | . . Overflow Damage . | . . Projectiles . | . . Explosions . | . . Melee . | . . Knockbacks . | . . Impact . | . . Kinetic . | . . Secondary . | . . Self-Inflicted Damage . | . . Shots . | . . Rammed . | . . Targets Rammed 1 | 1 . Kicked 1 | 1 . Crushed . | . . Highest Temperature 230 | . 230 Average Temperature 61 | . 61 Received Heat Transfer 273 | . 273 Siege Activations . | . . Robots Corrupted . | . . Combat Hostiles . | . . Parts Fried . | . . Impact Corruptions . | . . Robots Melted . | . . Combat Hostiles . | . . Parts Melted 2 | . 2 Heat Transferred 1147 | . 1147 Parts Sabotaged . | . . Parts Stolen . | . . Parts Stripped . | . . Power Chain Reactions . | . . Alert | -11 -10 ------- Run | Yrd Mat Peak Influence 151 | . 151 Initial . | . . Average 68 | . 76 Maximum Alert Level . | . . Low Security (%) 100 | 100 100 Level 1 . | . . Level 2 . | . . Level 3 . | . . Level 4 . | . . Level 5 . | . . High Security . | . . Max Security . | . . Squads Dispatched . | . . Investigation . | . . Extermination . | . . Reinforcement . | . . Assault . | . . Garrison . | . . Intercept . | . . Searches Triggered . | . . Construction Impeded . | . . Haulers Reinforced . | . . Active Scanning Responses . | . . Cargo Convoy Interrupts . | . . Stealth | -11 -10 --------- Run | Yrd Mat Distress Signals 3 | . 3 Communications Jammed . | . . Distress Signals . | . . Times Spotted 15 | . 15 Peak Tracking Total 5 | . 5 Tactical Retreats 1 | . 1 Traps | -11 -10 ------- Run | Yrd Mat Traps Triggered . | . . Indirectly . | . . Trap Hack Attempts . | . . Triggered . | . . Disarmed . | . . Reprogrammed . | . . Reused . | . . Traps Extracted . | . . Installed . | . . Triggered . | . . Machines | -11 -10 ---------- Run | Yrd Mat Machines Disabled . | . . Max in Single Turn . | . . Machines Repaired . | . . Machines Dismantled . | . . Machines Sabotaged . | . . Overloaded Fab Kills . | . . Hacking | -11 -10 --------- Run | Yrd Mat Machines Accessed 3 | . 3 Terminals 3 | . 3 Fabricators . | . . Repair Stations . | . . Recycling Units . | . . Scanalyzers . | . . Garrison Access . | . . Total Hacks 7 | . 7 Successful 3 | . 3 Failed 4 | . 4 Catastrophic . | . . Database Lockouts . | . . Manual . | . . Terminals 7 | . 7 Fabricators . | . . Repair Stations . | . . Recycling Units . | . . Scanalyzers . | . . Garrison Access . | . . Terminal Hacks 3 | . 3 Record 1 | . 1 Locate Traps 1 | . 1 Zone Layout 1 | . 1 Fabricator Hacks . | . . Repair Station Hacks . | . . Recycling Unit Hacks . | . . Scanalyzer . | . . Garrison Access Hacks . | . . Unauthorized Hacks . | . . Terminals . | . . Fabricators . | . . Repair Stations . | . . Recycling Units . | . . Scanalyzers . | . . Garrison Access . | . . Data Cores Recovered . | . . Used . | . . Hacking Detections 3 | . 3 Full Trace Events . | . . Feedback Events . | . . Feedback Blocked . | . . Robot Schematics Acquired . | . . Robots Built . | . . Authchips . | . . Time . | . . Total Robot Build Rating . | . . Part Schematics Acquired . | . . Parts Built . | . . Authchips . | . . Time . | . . Total Part Build Rating . | . . Parts Repaired . | . . Time . | . . Parts Recycled . | . . Recycled Matter . | . . Retrieved Matter . | . . Retrieved Components . | . . Parts Scanalyzed . | . . Part Schematics Acquired . | . . Parts Damaged . | . . Bothacking | -11 -10 ------------ Run | Yrd Mat Used RIF Installer . | . . Robots Hacked . | . . Non-combat . | . . Combat . | . . Robot Hacks Applied . | . . Relay Couplers Released . | . . Fabnet Peak Effective % . | . . Robots Rewired . | . . Allies Hacked . | . . Hacks Repelled . | . . Allies | -11 -10 -------- Run | Yrd Mat Total Allies . | . . Largest Group . | . . Highest-Rated Group . | . . Highest-Rated Ally . | . . Total Orders . | . . Ally Attacks . | . . Total Damage . | . . Kills . | . . Allies Corrupted . | . . Allies Melted . | . . Intel | -11 -10 ------- Run | Yrd Mat Robot Analysis Total . | . . Derelict Logs Recovered . | . . Drone Launches . | . . Drone Recoveries . | . . Exploration | -11 -10 ------------- Run | Yrd Mat Turns Passed 741 | 69 672 Spaces Moved 406 | 56 350 Core 78 | 16 62 Treads . | . . Legs 328 | 40 288 Wheels . | . . Hover . | . . Flight . | . . Fastest Speed 50 | 50 100 Average Speed 121 | 100 124 Slowest Speed 200 | 120 200 Overloaded Moves . | . . Propulsion Burnouts . | . . Robots Hopped . | . . Cave-ins Triggered . | . . Exploration Rate (%) 37 | 5 69 Regions Visited 1 Branch Regions . Pre-discovered Areas . | . . Known Exits Taken . | . . Unknown Exits Taken 1 | 1 . Scrap Searched . | . . Spaces Dug . | . . Terrain Destroyed . | . . Melee . | . . Projectile . | . . AOE . | . . Terrain Rammed . | . . Walls Destroyed . | . . Machines Disabled . | . . Actions | -11 -10 --------- Run | Yrd Mat Total 518 | 66 452 Wait . | . . Move 405 | 55 350 Hop . | . . Pick Up 6 | . 6 Fast Attach 14 | 8 6 Attach . | . . Detach . | . . Swap . | . . Drop 5 | 2 3 Fire 87 | . 87 Melee . | . . Ram . | . . Kick 1 | 1 . Crush . | . . Escape Stasis . | . . Rewire . | . . Trap . | . . Miscellaneous . | . . Route ------- -11/Scrapyard -10/Materials (discovered 2 exits: [*Mat] / [*Min]) History --------- Turn | Location | Event 16 | -11/Scrapyard | Discovered new exit (range 15) 70 | -11/Scrapyard | Entered Materials 255 | -10/Materials | Discovered new exit (range 14) 302 | -10/Materials | Build established: Mutant 408 | -10/Materials | Discovered new exit (range 16) 511 | -10/Materials | Lost 3 parts (1p1n1w) 665 | -10/Materials | Core integrity fell below 50% 702 | -10/Materials | Lost 4 parts (1p1n2w) 729 | -10/Materials | Core integrity fell below 20% 742 | -10/Materials | Destroyed by G-47 Trooper with Particle Gun Last Messages --------------- Connecting with Terminal... R-06 Scavenger collects Flight Unit. K-01 Serf collects debris. Acquired 17 matter. K-01 Serf cleans the Nuclear Reactor. W-16 Scout sends out distress signal. K-01 Serf cleans the Nuclear Reactor. W-16 Scout destroyed. A-02 Transporter sends out distress signal. K-01 Serf collects debris. Aluminum Leg destroyed. Lgt. Ion Engine destroyed. K-01 Serf collects debris. A-02 Transporter suffers critical hit (Destroy). Destroyed Ion Engine. Lgt. Assault Rifle destroyed. K-01 Serf cleans the Nuclear Reactor. Lgt. Assault Rifle destroyed. Acquired Lgt. Assault Rifle. Critical hit (Burn: +37). Map ----- +----------------------------------------------------+ | ?????????????????????## """ #?????????????# | | ??????????????????????+ """ #?????????????# | | ???? ???????????????# %!""" #?????????????# | | ???# ???????????????# * #?????????????# | | ???# ???????????????# #????????????## | | ???# ???????????????# """ #????????????#T | | ???# ################ """ #????????????## | | ???# """ +???????????### | | ???# #???????????#"" | | ???# #???????????#T | | ???# ##### ############### ##???????????### | | ???# #####/#########?????# ##########?????# | | ???# # !#?????# ##"""""""#?????# | | ???# # #?????# ##" |"| "#?????# | | ???# # """"" """"" #?????# ##" "####### | | ???# # """"" """"" #?????# % == | | ???# # """"" """""???????# < % == | | ???# + #?????# % = | | ???# ##################### # # | | ???# ############## ## ######### | | ???# | | ???# = ^^ | | ???# ^ | | ???# ############## g #################+#### | | ???# #??????????#####g#####??????????# #? | | ???# #??????????# @""" #??????????#""" #? | | ???# #??????????# "Y" #??????????#"R |#? | | ???# #??????????# #??????????#""" #? | | ???# #??????????# #??????????# # | | ???# #??????????# """ """ #??????????# # | | ???# ???????????# """ """ #??????????######### | | ???# ???????????# """ """ #??????????????????? | | ???# ???????????# #??????????????????? | | ???# ???????????###########??????????????????? | | ???# ????????????????????????????????????????? | | ???# ????????????????????????????????????????? | | ???? ????????????????????????????????????????? | | ???????????????????????????????????????????????? | | ???????????????????????????????????????????????? | | ???????????????????????????????????????????????? | | ???????????????????????????????????????????????? | | ???????????????????????????????????????????????? | | ???????????????????????????????????????????????? | | ???????????????????????????????????????????????? | | ???????????????????????????????????????????????? | | ???????????????????????????????????????????????? | | ???????????????????????????????????????????????? | | ???????????????????????????????????????????????? | | ???????????????????????????????????????????????? | | ???????????????????????????????????????????????? | +----------------------------------------------------+ Best States ------------- Heat Dissipation 25 Energy Generation 10 Energy Capacity 250 Matter Stores 260 Matter Capacity 300 Sight Range 16 Terrain Scan Density 10 Evasion (%) 55 Item Schematics ----------------- None Robot Schematics ------------------ None Fabricated ------------ Nothing Alien Tech Used ----------------- None Achievements -------------- None Challenges ------------ None Game ------ Seed FissionOpticalMaul Manual? 0 Play Time 00:09:23 Cumulative 2.7 hours Start 2024.04.08 @ 18:06:00 End 2024.04.08 @ 18:12:38 Sessions 1 Manual Loads 0 Difficulty Rogue Special Mode None Game No. 4 Rogue 1 Adventurer 0 Explorer 3 Win Type - Total 0 Types 0/0/0/0/0/0/0/0/0 Lore% 8 Gallery% 13 Achievement% 12 Wizard Run 0 Options --------- Layout 1 ASCII 0 Keyboard 0 Movement Arrows Keybinds 0 Fullscreen 0 Font 28/SmallcapsGlow Map View 50x43 Zoom Use 0% Tactical HUD 0 Map Filters NONE Filters NONE Steam 1 RUN: f9e61f98-5d9b-46a5-88a2-9bed0a78471c